fUST/lending_fUST_20250614
["ID","MTS","AMOUNT","RATE_DAILY","PERIOD"]
[365749075,1749875438083,-273.0,0.00021096,2]
[365749076,1749875438092,-1871.09,0.00021149,2]
[365749077,1749875438102,-513.11,0.00021367,4]
[365749078,1749875438111,-460.0,0.00021367,4]
[365749079,1749875438122,-460.0,0.00021367,4]
[365749080,1749875438132,-460.0,0.00021367,4]
[365749081,1749875438141,-460.0,0.00021367,4]
[365749082,1749875438151,-421.69517693,0.00021368,4]
[365749083,1749875438162,-426.13961418,0.00021368,4]
[365749084,1749875438172,-460.0,0.00021368,4]
[365749085,1749875438181,-464.73192859,0.00021368,4]
[365749086,1749875438191,-447.25349049,0.00021369,4]
[365749087,1749875438205,-420.0,0.00021369,4]
[365749088,1749875438215,-460.0,0.00021369,4]
[365749089,1749875438225,-408.68,0.00021369,4]
[365749090,1749875438236,-460.0,0.00021369,2]
[365749091,1749875438246,-460.0,0.00021369,4]
[365749092,1749875438256,-460.0,0.00021369,4]
[365749093,1749875438267,-460.0,0.00021369,4]
[365749094,1749875438278,-2357.79,0.00021369,4]
[365749095,1749875438288,-460.0,0.00021369,4]
[365749096,1749875438298,-460.0,0.00021369,4]
[365749097,1749875438308,-460.0,0.00021369,4]
[365749098,1749875438317,-460.0,0.00021369,4]
[365749099,1749875438327,-460.0,0.00021369,4]
[365749100,1749875438337,-160.0,0.00021375,2]
[365749101,1749875438346,-273.0,0.00021487,2]
[365749102,1749875438356,-176.24107408,0.00021541,2]
[365749103,1749875438366,-176.333,0.00021593,2]
[365749104,1749875438375,-513.11,0.00021641,4]
[365749105,1749875438385,-460.0,0.00021641,4]
[365749106,1749875438395,-460.0,0.00021641,4]
[365749107,1749875438405,-460.0,0.00021641,4]
[365749108,1749875438414,-460.0,0.00021641,4]
[365749109,1749875438424,-460.0,0.00021643,2]
[365749110,1749875438434,-460.0,0.00021643,4]
[365749111,1749875438443,-460.0,0.00021643,4]
[365749112,1749875438453,-460.0,0.00021643,4]
[365749113,1749875438463,-2357.79,0.00021643,4]
[365749114,1749875438474,-460.0,0.00021643,4]
[365749115,1749875438488,-460.0,0.00021643,4]
[365749116,1749875438498,-460.0,0.00021643,4]
[365749117,1749875438508,-460.0,0.00021643,4]
[365749118,1749875438518,-460.0,0.00021643,4]
[365749119,1749875438530,-1737.0,0.00021678,2]
[365749120,1749875438540,-273.0,0.00021754,2]
[365749121,1749875438550,-273.0,0.00021775,2]
[365749122,1749875438559,-952.18177664,0.000219,6]
[365749123,1749875438569,-513.11,0.00021915,4]
[365749124,1749875438579,-460.0,0.00021915,4]
[365749125,1749875438589,-584.1748209,0.00021915,4]
[365749126,1749875438599,-460.0,0.00021915,4]
[365749127,1749875438608,-460.0,0.00021915,4]
[365749128,1749875438617,-460.0,0.00021917,2]
[365749129,1749875438627,-460.0,0.00021917,4]
[365749130,1749875438637,-325.62,0.00021917,4]
[365749131,1749875438646,-460.0,0.00021917,4]
[365749132,1749875438658,-2357.79,0.00021917,4]
[365749133,1749875438668,-460.0,0.00021917,4]
[365749134,1749875438677,-460.0,0.00021917,4]
[365749135,1749875438687,-460.0,0.00021917,4]
[365749136,1749875438696,-460.0,0.00021917,4]
[365749137,1749875438708,-460.0,0.00021917,4]
[365749138,1749875438717,-345.39,0.0002199,10]
[365749139,1749875438728,-15379.20437679,0.00022,7]
[365749140,1749875438741,-37028.60093067,0.00022,7]
[365749141,1749875438750,-165.71477464,0.00022,10]
[365749142,1749875438760,-952.18177652,0.00022003,6]
[365749143,1749875438770,-239.64954421,0.00022007,2]
[365749144,1749875438780,-952.18177652,0.00022107,6]
[365749145,1749875438789,-513.11,0.00022189,4]
[365749146,1749875438799,-460.0,0.00022189,4]
[365749147,1749875438808,-460.0,0.00022189,4]
[365749148,1749875438819,-460.0,0.00022189,4]
[365749149,1749875438828,-460.0,0.00022191,2]
[365749150,1749875438837,-460.0,0.00022191,4]
[365749151,1749875438847,-460.0,0.00022191,4]
[365749152,1749875438856,-2357.79,0.00022191,4]
[365749153,1749875438866,-460.0,0.00022191,4]
[365749154,1749875438876,-460.0,0.00022191,4]
[365749155,1749875438885,-460.0,0.00022191,4]
[365749156,1749875438895,-460.0,0.00022191,4]
[365749157,1749875438904,-460.0,0.00022191,4]
[365749158,1749875438914,-719.7,0.00022203,4]
[365749159,1749875438923,-952.18177652,0.0002221,6]
[365749160,1749875438933,-1737.0,0.00022273,2]
[365749161,1749875438942,-719.7,0.00022303,7]
[365749162,1749875439084,-952.18177652,0.00022314,7]
[365749163,1749875439095,-207.4,0.00022362,2]
[365749164,1749875439105,-5000.0,0.00022383,2]
[365749165,1749875439114,-12039.76375994,0.00022383,2]
[365749166,1749875439123,-12533.30537164,0.00022397,2]
[365749167,1749875439133,-719.7,0.00022403,5]
[365749168,1749875439143,-258.63,0.00022453,3]
[365749169,1749875439153,-775.93,0.00022455,3]
[365749170,1749875439162,-513.11,0.00022463,4]
[365749171,1749875439172,-481.97329986,0.00022463,4]
[365749172,1749875439181,-460.0,0.00022463,4]
[365749173,1749875439191,-460.0,0.00022463,4]
[365749174,1749875439200,-460.0,0.00022465,2]
[365749175,1749875439210,-460.0,0.00022465,4]
[365749176,1749875439219,-460.0,0.00022465,4]
[365749177,1749875439229,-2357.79,0.00022465,4]
[365749178,1749875439238,-460.0,0.00022465,4]
[365749179,1749875439247,-460.0,0.00022465,4]
[365749180,1749875439257,-460.0,0.00022465,4]
[365749181,1749875439266,-460.0,0.00022465,4]
[365749182,1749875439276,-460.0,0.00022465,4]
[365749183,1749875439286,-719.7,0.00022503,7]
[365749184,1749875439297,-952.18177652,0.00022521,7]
[365749185,1749875439306,-160.0,0.0002258,2]
[365749186,1749875439316,-424.40141186,0.00022582,2]
[365749187,1749875439325,-160.0,0.00022582,2]
[365749188,1749875439334,-229.82479369,0.00022582,2]
[365749189,1749875439344,-835.41710878,0.00022582,2]
[365749190,1749875439354,-213.28201367,0.00022582,2]
[365749191,1749875439363,-845.10789306,0.00022582,2]
[365749192,1749875439373,-160.0,0.00022582,2]
[365749193,1749875439382,-719.7,0.00022603,7]
[365749194,1749875439392,-517.26,0.00022614,3]
[365749195,1749875439401,-500.0,0.00022621,2]
[365749196,1749875439412,-160.0,0.00022621,2]
[365749197,1749875439422,-952.18177652,0.00022624,7]
[365749198,1749875439432,-719.7,0.00022703,6]
[365749200,1749875439442,-952.18177652,0.00022728,7]
[365749201,1749875439451,-513.11,0.00022737,4]
[365749202,1749875439461,-460.0,0.00022737,4]
[365749203,1749875439470,-460.0,0.00022737,4]
[365749204,1749875439480,-460.0,0.00022739,2]
[365749205,1749875439491,-460.0,0.00022739,4]
[365749207,1749875439501,-460.0,0.00022739,4]
[365749209,1749875439515,-2357.79,0.00022739,4]
[365749210,1749875439531,-460.0,0.00022739,4]
[365749211,1749875439541,-460.0,0.00022739,4]
[365749212,1749875439554,-460.0,0.00022739,4]
[365749213,1749875439566,-460.0,0.00022739,4]
[365749214,1749875439575,-591.22,0.00022739,4]
[365749215,1749875439586,-153.0,0.0002274,2]
[365749216,1749875439596,-153.0,0.0002274,2]
[365749217,1749875439606,-153.0,0.0002274,2]
[365749219,1749875439616,-153.0,0.0002274,2]
[365749220,1749875439626,-719.7,0.00022803,5]
[365749221,1749875439635,-952.18177652,0.00022831,8]
[365749222,1749875439646,-719.7,0.00022903,3]
[365749223,1749875439656,-5000.0,0.00022931,2]
[365749224,1749875439667,-952.18177652,0.00022934,8]
[365749225,1749875439677,-420.0,0.00022943,2]
[365749226,1749875439686,-420.0,0.00022943,2]
[365749227,1749875439696,-420.0,0.00022943,2]
[365749228,1749875439706,-11166.89893654,0.00023,2]
[365749229,1749875439826,-904.4432318,0.00023,2]
[365749230,1749875439836,-47.58977313,0.00023,20]
[365749231,1749875439847,-500.0,0.00023,20]
[365749232,1749875439858,-1031.83050891,0.00023,20]
[365749233,1749875439869,-6298.79697883,0.00023,20]
[365749235,1749875440138,-287.82,0.00022179,10]
[365749236,1749875440148,-1596.21791426,0.00023,20]
[365749237,1749875440325,-11.74837029,0.00023,20]
[365749310,1749875446829,-265.84915516,0.0002185,2]
[365749312,1749875446840,-4375.65227695,0.0002277,2]
[365749319,1749875448052,-624.34772305,0.0002277,2]
[365749320,1749875448062,-47805.56566648,0.00023,20]
[365749345,1749875448377,-171.35204586,0.00023,20]
[365749347,1749875448387,-3028.69145512,0.00023,2]
[365749349,1749875448398,-1329.44870529,0.00023,2]
[365749351,1749875448408,-719.7,0.00023003,2]
[365749353,1749875448417,-513.11,0.00023011,4]
[365749355,1749875448426,-460.0,0.00023011,4]
[365749357,1749875448435,-460.0,0.00023011,4]
[365749359,1749875448445,-460.0,0.00023013,2]
[365749361,1749875448454,-460.0,0.00023013,4]
[365749363,1749875448464,-150.41975688,0.00023013,4]
[365749374,1749875453543,-180.81256741,0.00021368,4]
[365749378,1749875566216,-705.89627809,0.000209,2]
[365749379,1749875566238,-147.10372191,0.00020995,2]
[365749382,1749875661262,-193.3401252,0.00020287,2]
[365749383,1749875690218,-206.38699397,0.00020287,2]
[365749384,1749875691780,-237.78113683,0.00020287,2]
[365749385,1749875691802,-5000.0,0.00020942,2]
[365749386,1749875704059,275.21886317,0.00021019,2]
[365749389,1749875718539,-166.0273955,0.00020287,2]
[365749390,1749875723168,-151.73750998,0.00020287,2]
[365749391,1749875738610,-173.17858177,0.0002025,2]
[365749392,1749875743309,-151.06405933,0.00020243,2]
[365749393,1749875745404,239.48225441,0.00019231,2]
[365749395,1749875759634,-300.0,0.00020242,2]
[365749396,1749875759655,-24748.93594067,0.00020243,2]
[365749397,1749875759678,-3792.14623013,0.0002025,2]
[365749398,1749875759700,-9682.23509452,0.00020287,2]
[365749399,1749875759722,-4724.78113683,0.00021019,2]
[365749400,1749875761884,169.65996769,0.0002015,2]
[365749401,1749875763186,24.24163016,0.0002,2]
[365749402,1749875763211,4975.75836984,0.0002,2]
[365749404,1749875874639,-227.527292,0.00020194,2]
[365749405,1749875874661,-3713.472708,0.00020329,2]
[365749407,1749875942686,-537.0,0.00020329,2]
[365749409,1749875968915,583.66406879,0.0002,2]
[365749410,1749875968937,4416.33593121,0.0002,2]
[365749411,1749875997089,2311.95038321,0.0001694,2]
[365749413,1749876011478,-4894.0,0.00020329,2]
[365749418,1749876046808,179.6116908,0.00019855,2]
[365749419,1749876172866,5000.0,0.0002,2]
[365749420,1749876216754,163.073196,0.00013699,2]
[365749424,1749876253197,2231.99802911,0.0002,2]
[365749428,1749876358204,-5000.0,0.00020329,2]
[365749429,1749876358226,-169.65996769,0.00020535,2]
[365749430,1749876358248,-720.50418307,0.000209,2]
[365749431,1749876358269,-169.65996769,0.00020919,2]
[365749432,1749876358290,-309.2336423,0.00021019,2]
[365749433,1749876358311,-1200.0,0.00021092,2]
[365749434,1749876358333,-300.0,0.00021092,2]
[365749435,1749876358353,-300.0,0.00021093,2]
[365749436,1749876358374,-300.0,0.00021093,2]
[365749437,1749876358394,-300.0,0.00021093,2]
[365749438,1749876358414,-602.27238051,0.00021094,7]
[365749439,1749876359356,5000.0,0.0001694,2]
[365749440,1749876383762,530.33612205,0.000189,2]
[365749441,1749876434078,-158.17852619,0.00020435,3]
[365749442,1749876434100,-260.57677207,0.00020983,2]
[365749443,1749876445112,-273.08181657,0.0002031,2]
[365749444,1749876445134,-4739.42322793,0.00020983,2]
[365749445,1749876445155,-2397.72761949,0.00021094,7]
[365749446,1749876445176,-2006.92,0.00021198,2]
[365749447,1749876445196,-173.29,0.00021335,2]
[365749448,1749876445218,-300.0,0.00021342,2]
[365749449,1749876445239,-460.0,0.00021344,4]
[365749450,1749876445260,-460.0,0.00021344,4]
[365749451,1749876445284,-200.51221839,0.00021344,4]
[365749452,1749876448102,-259.48778161,0.00021344,4]
[365749453,1749876448124,-283.2041638,0.00021344,4]
[365749454,1749876454089,-902.59375199,0.00021131,2]
[365749478,1749876632179,-306.04373011,0.0002111,2]
[365749480,1749876632188,-428.43646524,0.00021131,2]
[365749482,1749876632200,-452.28758707,0.00021131,2]
[365749484,1749876632213,-3216.6821957,0.00021131,2]
[365749486,1749876632223,-165.11664419,0.00021256,2]
[365749488,1749876632232,-4018.13877687,0.00021332,2]
[365749495,1749876632288,-11981.86122313,0.00021332,2]
[365749497,1749876632297,-1200.0,0.00021341,2]
[365749499,1749876632307,-300.0,0.00021342,2]
[365749501,1749876632316,-300.0,0.00021342,2]
[365749503,1749876632325,-300.0,0.00021342,2]
[365749505,1749876632335,-440.0,0.00021343,4]
[365749507,1749876632344,-460.0,0.00021343,4]
[365749509,1749876632354,-420.32670754,0.00021343,4]
[365749511,1749876632363,-460.0,0.00021343,4]
[365749512,1749876632372,-2694.91,0.00021343,4]
[365749513,1749876632381,-460.0,0.00021343,4]
[365749514,1749876632390,-460.0,0.00021343,4]
[365749515,1749876632399,-460.0,0.00021343,4]
[365749516,1749876632408,-460.0,0.00021343,4]
[365749517,1749876632417,-460.0,0.00021343,4]
[365749518,1749876632427,-460.0,0.00021343,4]
[365749519,1749876632436,-460.0,0.00021343,4]
[365749520,1749876632445,-490.1,0.00021343,4]
[365749521,1749876632454,-488.27,0.00021343,4]
[365749522,1749876632463,-460.0,0.00021343,4]
[365749524,1749876632473,-460.0,0.00021343,4]
[365749526,1749876632483,-380.0,0.00021343,4]
[365749527,1749876632492,-460.0,0.00021343,4]
[365749528,1749876632501,-460.0,0.00021343,4]
[365749529,1749876632510,-460.0,0.00021343,4]
[365749530,1749876632519,-438.06795356,0.00021343,4]
[365749531,1749876632529,-460.0,0.00021343,4]
[365749532,1749876632538,-460.0,0.00021343,4]
[365749533,1749876632548,-460.0,0.00021343,4]
[365749534,1749876632557,-470.02176757,0.00021343,4]
[365749535,1749876632566,-460.0,0.00021343,4]
[365749536,1749876632575,-420.0,0.00021343,4]
[365749537,1749876632585,-460.0,0.00021344,4]
[365749538,1749876632594,-407.38107204,0.00021344,4]
[365749539,1749876632603,-460.0,0.00021344,4]
[365749540,1749876632613,-460.0,0.00021344,4]
[365749541,1749876632623,-460.0,0.00021344,4]
[365749542,1749876632632,-171.21984458,0.00021344,4]
[365749543,1749876632641,-481.796739,0.00021344,4]
[365749544,1749876632650,-460.0,0.00021344,4]
[365749545,1749876632659,-460.0,0.00021344,4]
[365749546,1749876632668,-461.42081182,0.00021344,4]
[365749547,1749876632678,-460.0,0.00021344,4]
[365749548,1749876632687,-440.85780544,0.00021344,4]
[365749549,1749876632696,-460.0,0.00021344,4]
[365749550,1749876632704,-460.0,0.00021344,4]
[365749552,1749876632714,-460.0,0.00021344,4]
[365749554,1749876632723,-470.94582837,0.00021344,4]
[365749557,1749876632741,-460.0,0.00021344,4]
[365749559,1749876632753,-460.0,0.00021344,4]
[365749561,1749876632764,-420.0,0.00021344,4]
[365749562,1749876632773,-460.0,0.00021344,4]
[365749563,1749876632783,-460.0,0.00021344,4]
[365749564,1749876632792,-393.74537622,0.00021344,4]
[365749565,1749876632801,-343.44569085,0.00021344,4]
[365749566,1749876632811,-593.95,0.00021344,4]
[365749567,1749876632821,-460.0,0.00021344,4]
[365749568,1749876632831,-460.0,0.00021344,4]
[365749569,1749876632841,-480.51585195,0.00021344,4]
[365749570,1749876632850,-428.62645855,0.00021344,4]
[365749571,1749876632860,-460.0,0.00021344,4]
[365749572,1749876632869,-460.0,0.00021344,4]
[365749573,1749876632879,-460.0,0.00021344,4]
[365749574,1749876632888,-475.75378105,0.00021344,4]
[365749575,1749876632898,-460.0,0.00021344,4]
[365749576,1749876632907,-460.0,0.00021344,4]
[365749577,1749876632916,-460.0,0.00021344,4]
[365749578,1749876632926,-423.97515591,0.00021344,4]
[365749579,1749876632936,-460.0,0.00021344,4]
[365749580,1749876632945,-460.0,0.00021344,4]
[365749581,1749876632955,-460.0,0.00021344,4]
[365749582,1749876632965,-460.0,0.00021344,4]
[365749583,1749876632974,-460.0,0.00021344,4]
[365749584,1749876632983,-460.0,0.00021344,4]
[365749585,1749876632993,-460.0,0.00021344,4]
[365749586,1749876633003,-460.0,0.00021344,4]
[365749587,1749876633013,-460.0,0.00021344,4]
[365749588,1749876633023,-155.0,0.00021344,2]
[365749589,1749876633032,-460.0,0.00021344,4]
[365749590,1749876633042,-460.0,0.00021344,4]
[365749591,1749876633052,-565.85,0.00021344,4]
[365749592,1749876633062,-451.41859367,0.00021344,4]
[365749593,1749876633071,-460.0,0.00021344,4]
[365749594,1749876633080,-460.0,0.00021344,4]
[365749595,1749876633090,-460.0,0.00021344,4]
[365749596,1749876633099,-420.0,0.00021344,4]
[365749597,1749876633109,-460.0,0.00021344,4]
[365749598,1749876633118,-460.0,0.00021344,4]
[365749599,1749876633127,-342.87444201,0.00021344,4]
[365749600,1749876633137,-283.77063217,0.00021344,4]
[365749601,1749876633147,-273.97,0.00021348,10]
[365749602,1749876633311,-228.31,0.00021348,10]
[365749603,1749876633322,-326.35210635,0.00021356,4]
[365749604,1749876633332,-177.981,0.00021356,2]
[365749605,1749876633342,-232.77275889,0.00021356,4]
[365749606,1749876633352,-461.83440516,0.00021356,4]
[365749607,1749876633361,-460.0,0.00021356,4]
[365749608,1749876633371,-443.3298088,0.00021356,4]
[365749609,1749876633380,-460.0,0.00021356,4]
[365749610,1749876633390,-458.87724568,0.00021356,4]
[365749611,1749876633400,-460.0,0.00021356,4]
[365749612,1749876633409,-330.07642659,0.00021356,4]
[365749613,1749876633419,-460.0,0.00021356,4]
[365749614,1749876633429,-474.08178349,0.00021356,4]
[365749615,1749876633439,-393.0316984,0.00021356,4]
[365749616,1749876633448,-460.0,0.00021356,4]
[365749617,1749876633458,-460.0,0.00021356,2]
[365749618,1749876633468,-460.0,0.00021356,4]
[365749619,1749876633479,-460.0,0.00021356,4]
[365749620,1749876633489,-460.0,0.00021356,4]
[365749621,1749876633499,-460.0,0.00021356,4]
[365749622,1749876633508,-477.18598229,0.00021356,4]
[365749623,1749876633519,-460.0,0.00021356,4]
[365749624,1749876633529,-460.0,0.00021356,4]
[365749625,1749876633539,-414.39149977,0.00021356,4]
[365749626,1749876633550,-460.0,0.00021356,4]
[365749627,1749876633560,-445.30521594,0.00021356,4]
[365749628,1749876633571,-441.64948714,0.00021356,4]
[365749629,1749876633581,-605.1698229,0.00021356,4]
[365749630,1749876633591,-460.0,0.00021356,4]
[365749631,1749876633601,-460.0,0.00021356,4]
[365749632,1749876633610,-460.0,0.00021356,4]
[365749633,1749876633620,-460.0,0.00021356,4]
[365749634,1749876633630,-460.0,0.00021356,4]
[365749635,1749876633640,-460.0,0.00021356,4]
[365749636,1749876633650,-460.0,0.00021356,4]
[365749637,1749876633660,-460.0,0.00021356,4]
[365749638,1749876633670,-420.48687097,0.00021356,4]
[365749639,1749876633680,-459.84536179,0.00021356,4]
[365749640,1749876633690,-460.0,0.00021356,4]
[365749641,1749876633701,-460.0,0.00021356,4]
[365749642,1749876633712,-460.0,0.00021356,4]
[365749643,1749876633722,-431.0064386,0.00021356,4]
[365749644,1749876633732,-529.89172678,0.00021356,4]
[365749645,1749876633742,-460.0,0.00021356,4]
[365749646,1749876633754,-460.0,0.00021356,4]
[365749647,1749876633764,-460.0,0.00021356,4]
[365749648,1749876633774,-460.0,0.00021356,4]
[365749649,1749876633784,-451.33327905,0.00021356,4]
[365749650,1749876633794,-449.69831835,0.00021356,4]
[365749651,1749876633803,-436.95067091,0.00021356,4]
[365749652,1749876633814,-460.0,0.00021356,4]
[365749653,1749876633824,-497.05156554,0.00021356,4]
[365749654,1749876633834,-482.44018328,0.00021356,4]
[365749655,1749876633844,-451.9240512,0.00021356,4]
[365749656,1749876633855,-410.0,0.00021356,4]
[365749657,1749876633865,-460.0,0.00021356,2]
[365749658,1749876633879,-477.55927474,0.00021356,4]
[365749659,1749876633889,-401.89285005,0.00021356,4]
[365749660,1749876633899,-460.0,0.00021356,4]
[365749661,1749876633909,-468.81052947,0.00021356,4]
[365749662,1749876633919,-460.0,0.00021356,4]
[365749663,1749876633929,-426.13986795,0.00021356,4]
[365749664,1749876633939,-273.27119679,0.00021356,4]
[365749665,1749876633949,-471.50116303,0.00021356,4]
[365749666,1749876633960,-424.83224974,0.00021356,4]
[365749667,1749876633972,-589.66291647,0.00021356,4]
[365749668,1749876633981,-593.3401252,0.00021357,2]
[365749669,1749876633991,-15610.04936,0.00021358,2]
[365749670,1749876634000,-500.0,0.00021367,2]
[365749671,1749876634010,-420.70405248,0.00021368,4]
[365749672,1749876634019,-330.0,0.00021368,4]
[365749673,1749876634029,-410.0,0.00021368,4]
[365749674,1749876634039,-460.0,0.00021368,4]
[365749675,1749876634049,-460.0,0.00021368,4]
[365749676,1749876634058,-420.0,0.00021368,4]
[365749677,1749876634069,-460.0,0.00021368,4]
[365749678,1749876634078,-460.0,0.00021368,4]
[365749679,1749876634087,-405.0,0.00021368,4]
[365749680,1749876634097,-460.0,0.00021368,4]
[365749681,1749876634107,-460.0,0.00021368,4]
[365749682,1749876634117,-481.80435851,0.00021368,4]
[365749683,1749876634126,-423.22740252,0.00021368,4]
[365749684,1749876634136,-417.49682067,0.00021368,4]
[365749685,1749876634146,-460.0,0.00021368,4]
[365749686,1749876634155,-473.11981829,0.00021368,4]
[365749687,1749876634164,-400.0,0.00021368,4]
[365749688,1749876634177,-432.99413349,0.00021368,4]
[365749689,1749876634186,-460.0,0.00021368,4]
[365749690,1749876634196,-405.85261774,0.00021368,4]
[365749691,1749876634205,-421.43360347,0.00021368,4]
[365749692,1749876634215,-460.0,0.00021368,4]
[365749693,1749876634224,-164.91084572,0.00021368,4]
[365749694,1749876634234,-460.0,0.00021368,4]
[365749695,1749876634244,-436.96774967,0.00021371,2]
[365749696,1749876634256,-438.54840837,0.00021617,4]
[365749697,1749876634267,-460.0,0.00021617,4]
[365749698,1749876634277,-2694.91,0.00021617,4]
[365749699,1749876634287,-460.0,0.00021617,4]
[365749700,1749876634296,-460.0,0.00021617,4]
[365749701,1749876634306,-460.0,0.00021617,4]
[365749702,1749876634316,-490.1,0.00021617,4]
[365749703,1749876634325,-488.27,0.00021617,4]
[365749704,1749876634335,-460.0,0.00021617,4]
[365749705,1749876634346,-460.0,0.00021617,4]
[365749706,1749876634356,-460.0,0.00021617,4]
[365749707,1749876634366,-460.0,0.00021617,4]
[365749708,1749876634376,-460.0,0.00021617,4]
[365749709,1749876634386,-460.0,0.00021617,4]
[365749710,1749876634395,-460.0,0.00021617,4]
[365749711,1749876634405,-460.0,0.00021617,4]
[365749712,1749876634415,-447.27879392,0.00021618,4]
[365749713,1749876634425,-460.0,0.00021618,4]
[365749714,1749876634435,-436.35981694,0.00021618,4]
[365749715,1749876634444,-434.98300478,0.00021618,4]
[365749716,1749876634454,-460.0,0.00021618,4]
[365749717,1749876634464,-460.0,0.00021618,4]
[365749718,1749876634474,-362.13832868,0.00021618,4]
[365749719,1749876634484,-460.0,0.00021618,4]
[365749720,1749876634495,-385.36269342,0.00021618,4]
[365749721,1749876634504,-460.0,0.00021618,4]
[365749722,1749876634514,-460.0,0.00021618,4]
[365749723,1749876634524,-460.0,0.00021618,4]
[365749724,1749876634533,-593.95,0.00021618,4]
[365749725,1749876634543,-460.0,0.00021618,4]
[365749726,1749876634557,-460.0,0.00021618,4]
[365749727,1749876634566,-490.87769882,0.00021618,4]
[365749728,1749876634576,-460.0,0.00021618,4]
[365749729,1749876634588,-329.88593028,0.00021618,4]
[365749730,1749876634606,-421.50128124,0.00021618,4]
[365749731,1749876634615,-460.0,0.00021618,4]
[365749732,1749876634625,-460.0,0.00021618,4]
[365749733,1749876634635,-460.0,0.00021618,4]
[365749734,1749876634644,-460.0,0.00021618,4]
[365749735,1749876634654,-460.0,0.00021618,4]
[365749736,1749876634663,-460.0,0.00021618,4]
[365749737,1749876634675,-460.0,0.00021618,4]
[365749738,1749876634690,-460.0,0.00021618,4]
[365749739,1749876634700,-460.0,0.00021618,4]
[365749740,1749876634710,-565.85,0.00021618,4]
[365749741,1749876634720,-460.0,0.00021618,4]
[365749742,1749876634729,-460.0,0.00021618,4]
[365749743,1749876634738,-488.97,0.0002162,3]
[365749744,1749876634747,-244.49,0.0002162,3]
[365749745,1749876634757,-416.52129731,0.0002163,4]
[365749746,1749876634767,-233.49500189,0.0002163,4]
[365749747,1749876634776,-460.0,0.0002163,4]
[365749748,1749876634786,-357.34451038,0.0002163,4]
[365749749,1749876634795,-460.0,0.0002163,4]
[365749750,1749876634805,-460.0,0.0002163,4]
[365749751,1749876634816,-460.0,0.0002163,4]
[365749752,1749876634826,-460.0,0.0002163,4]
[365749753,1749876634835,-460.0,0.0002163,4]
[365749754,1749876634845,-460.0,0.0002163,4]
[365749755,1749876634854,-460.0,0.0002163,4]
[365749756,1749876634864,-460.0,0.0002163,4]
[365749757,1749876634873,-460.0,0.0002163,4]
[365749758,1749876634883,-460.0,0.0002163,4]
[365749759,1749876634893,-340.27359616,0.0002163,4]
[365749760,1749876634902,-470.45100791,0.0002163,4]
[365749761,1749876634912,-504.18078431,0.0002163,4]
[365749762,1749876634921,-286.42008489,0.0002163,4]
[365749763,1749876634937,-173.57991511,0.0002163,4]
[365749764,1749876634947,-460.0,0.0002163,4]
[365749765,1749876634957,-38.51798065,0.0002163,4]
[365749766,1749876635004,-318.0108661,0.0002163,4]
[365749767,1749876635014,-460.0,0.0002163,4]
[365749768,1749876635023,-460.0,0.0002163,2]
[365749769,1749876635032,-479.66826203,0.0002163,4]
[365749770,1749876635041,-460.0,0.0002163,4]
[365749771,1749876635051,-460.0,0.00021642,4]
[365749772,1749876635060,-496.72909165,0.00021642,4]
[365749773,1749876635070,-460.0,0.00021642,4]